[Event "Titled Tuesday Blitz November 29 Late 2022"]
[White "Bazeev, German"]
[Black "Arkell, Keith C"]
[WhiteFideId "24119350"]
[BlackFideId "400270"]
[WhiteElo "2493"]
[BlackElo "2342"]
[Result "1-0"]
[Round "07"]
[TimeControl "180+1"]
[Date "2022.11.30"]
[WhiteClock "0:00:19"]
[BlackClock "0:01:41"]

1. d4 {[%clk 0:02:36]}  e6 {[%clk 0:02:59]} 2. Nf3 {[%clk 0:02:35]}  Nf6 {[%clk 0:02:59]} 3. c4 {[%clk 0:02:36]}  Bb4+ {[%clk 0:02:59]} 4. Bd2 {[%clk 0:02:36]}  Bxd2+ {[%clk 0:02:58]} 5. Qxd2 {[%clk 0:02:34]}  d6 {[%clk 0:02:58]} 6. Nc3 {[%clk 0:02:34]}  Qe7 {[%clk 0:02:58]} 7. g3 {[%clk 0:02:24]}  e5 {[%clk 0:02:58]} 8. d5 {[%clk 0:02:00]}  Bg4 {[%clk 0:02:57]} 9. Bg2 {[%clk 0:01:56]}  Bxf3 {[%clk 0:02:57]} 10. exf3 {[%clk 0:01:56]}  O-O {[%clk 0:02:56]} 11. O-O {[%clk 0:01:54]}  a5 {[%clk 0:02:57]} 12. Rfe1 {[%clk 0:01:54]}  Nbd7 {[%clk 0:02:54]} 13. f4 {[%clk 0:01:55]}  Qd8 {[%clk 0:02:54]} 14. fxe5 {[%clk 0:01:51]}  Nxe5 {[%clk 0:02:54]} 15. b3 {[%clk 0:01:46]}  b6 {[%clk 0:02:54]} 16. Nb5 {[%clk 0:01:45]}  h6 {[%clk 0:02:50]} 17. Nd4 {[%clk 0:01:44]}  Qd7 {[%clk 0:02:49]} 18. f4 {[%clk 0:01:42]}  Ng6 {[%clk 0:02:48]} 19. Qd3 {[%clk 0:01:31]}  Rfe8 {[%clk 0:02:45]} 20. Qf5 {[%clk 0:01:31]}  Qxf5 {[%clk 0:02:45]} 21. Nxf5 {[%clk 0:01:31]}  Kf8 {[%clk 0:02:44]} 22. Bf3 {[%clk 0:01:24]}  Rxe1+ {[%clk 0:02:44]} 23. Rxe1 {[%clk 0:01:23]}  Re8 {[%clk 0:02:44]} 24. Rxe8+ {[%clk 0:01:23]}  Nxe8 {[%clk 0:02:45]} 25. Kf2 {[%clk 0:01:21]}  Ne7 {[%clk 0:02:45]} 26. Nd4 {[%clk 0:01:21]}  Ng8 {[%clk 0:02:34]} 27. g4 {[%clk 0:01:20]}  g5 {[%clk 0:02:34]} 28. Kg3 {[%clk 0:01:14]}  Ngf6 {[%clk 0:02:33]} 29. h4 {[%clk 0:01:14]}  gxh4+ {[%clk 0:02:32]} 30. Kxh4 {[%clk 0:01:13]}  Ng7 {[%clk 0:02:28]} 31. g5 {[%clk 0:01:05]}  hxg5+ {[%clk 0:02:28]} 32. Kxg5 {[%clk 0:00:59]}  Nd7 {[%clk 0:02:14]} 33. Bd1 {[%clk 0:00:39]}  Nc5 {[%clk 0:02:13]} 34. Bc2 {[%clk 0:00:39]}  Ne8 {[%clk 0:02:02]} 35. a3 {[%clk 0:00:38]}  Kg7 {[%clk 0:01:57]} 36. b4 {[%clk 0:00:37]}  axb4 {[%clk 0:01:58]} 37. axb4 {[%clk 0:00:38]}  Na6 {[%clk 0:01:58]} 38. Nc6 {[%clk 0:00:39]}  Nf6 {[%clk 0:01:56]} 39. Bf5 {[%clk 0:00:32]}  Nh7+ {[%clk 0:01:53]} 40. Bxh7 {[%clk 0:00:29]}  Kxh7 {[%clk 0:01:52]} 41. Kf6 {[%clk 0:00:28]}  Kg8 {[%clk 0:01:53]} 42. Ke7 {[%clk 0:00:25]}  Kg7 {[%clk 0:01:53]} 43. f5 {[%clk 0:00:21]}  f6 {[%clk 0:01:46]} 44. Ke6 {[%clk 0:00:20]}  Kf8 {[%clk 0:01:41]} 45. Kxf6 {[%clk 0:00:19]}  Ke8 {[%clk 0:01:41]} 46. Ke6 {[%clk 0:00:19]} 1-0


[Site "https://www.chess.com"]

[Event "Titled Tuesday Blitz November 29 Late 2022"]
[White "Bilan, Danila"]
[Black "Seletsky, Grigory"]
[WhiteFideId "24161918"]
[BlackFideId "14112191"]
[WhiteElo "2173"]
[BlackElo "2492"]
[Result "0-1"]
[Round "07"]
[TimeControl "180+1"]
[Date "2022.11.30"]
[WhiteClock "0:00:07"]
[BlackClock "0:00:08"]

1. d4 {[%clk 0:03:00]}  d5 {[%clk 0:02:59]} 2. Nf3 {[%clk 0:03:01]}  Bf5 {[%clk 0:02:57]} 3. c4 {[%clk 0:03:01]}  e6 {[%clk 0:02:57]} 4. Nc3 {[%clk 0:03:00]}  c6 {[%clk 0:02:56]} 5. Qb3 {[%clk 0:02:58]}  Qb6 {[%clk 0:02:56]} 6. c5 {[%clk 0:02:58]}  Qc7 {[%clk 0:02:56]} 7. g3 {[%clk 0:02:55]}  h6 {[%clk 0:02:54]} 8. Bf4 {[%clk 0:02:54]}  Qc8 {[%clk 0:02:53]} 9. Bg2 {[%clk 0:02:29]}  Nf6 {[%clk 0:02:54]} 10. O-O {[%clk 0:02:26]}  Be7 {[%clk 0:02:53]} 11. Qd1 {[%clk 0:02:18]}  Nbd7 {[%clk 0:02:49]} 12. b4 {[%clk 0:02:17]}  O-O {[%clk 0:02:38]} 13. b5 {[%clk 0:02:05]}  Ne4 {[%clk 0:02:32]} 14. Nxe4 {[%clk 0:01:50]}  Bxe4 {[%clk 0:02:32]} 15. a4 {[%clk 0:01:34]}  b6 {[%clk 0:02:29]} 16. bxc6 {[%clk 0:01:14]}  Qxc6 {[%clk 0:02:28]} 17. cxb6 {[%clk 0:00:56]}  axb6 {[%clk 0:02:23]} 18. Qb3 {[%clk 0:00:38]}  Bc2 {[%clk 0:02:12]} 19. Qb2 {[%clk 0:00:32]}  Bxa4 {[%clk 0:02:07]} 20. Rfc1 {[%clk 0:00:32]}  Qb5 {[%clk 0:02:06]} 21. Qd2 {[%clk 0:00:19]}  Rfc8 {[%clk 0:01:59]} 22. g4 {[%clk 0:00:07]}  Nf6 {[%clk 0:01:14]} 23. g5 {[%clk 0:00:07]}  Ne4 {[%clk 0:01:12]} 24. Qe3 {[%clk 0:00:07]}  hxg5 {[%clk 0:01:11]} 25. Nxg5 {[%clk 0:00:08]}  Nxg5 {[%clk 0:01:11]} 26. Bxg5 {[%clk 0:00:09]}  Bxg5 {[%clk 0:01:10]} 27. Qxg5 {[%clk 0:00:10]}  Qd7 {[%clk 0:01:10]} 28. Rxc8+ {[%clk 0:00:07]}  Rxc8 {[%clk 0:01:09]} 29. Bf1 {[%clk 0:00:05]}  Bb5 {[%clk 0:01:04]} 30. Rb1 {[%clk 0:00:04]}  Rc2 {[%clk 0:01:00]} 31. Rxb5 {[%clk 0:00:02]}  Qxb5 {[%clk 0:00:58]} 32. Qd8+ {[%clk 0:00:02]}  Kh7 {[%clk 0:00:57]} 33. Qh4+ {[%clk 0:00:03]}  Kg6 {[%clk 0:00:42]} 34. e4 {[%clk 0:00:01]}  Qb1 {[%clk 0:00:34]} 35. Qg4+ {[%clk 0:00:01]}  Kf6 {[%clk 0:00:32]} 36. Qh4+ {[%clk 0:00:01]}  g5 {[%clk 0:00:31]} 37. Qh6+ {[%clk 0:00:02]}  Ke7 {[%clk 0:00:29]} 38. Qxg5+ {[%clk 0:00:03]}  Kd7 {[%clk 0:00:27]} 39. exd5 {[%clk 0:00:03]}  Rc1 {[%clk 0:00:20]} 40. dxe6+ {[%clk 0:00:04]}  fxe6 {[%clk 0:00:20]} 41. Qg2 {[%clk 0:00:04]}  b5 {[%clk 0:00:19]} 42. Qb7+ {[%clk 0:00:04]}  Kd6 {[%clk 0:00:18]} 43. Qg2 {[%clk 0:00:04]}  b4 {[%clk 0:00:16]} 44. h4 {[%clk 0:00:04]}  b3 {[%clk 0:00:16]} 45. Qg3+ {[%clk 0:00:05]}  Kc6 {[%clk 0:00:15]} 46. Qf3+ {[%clk 0:00:05]}  Kb6 {[%clk 0:00:14]} 47. Qe2 {[%clk 0:00:06]}  Rxf1+ {[%clk 0:00:13]} 48. Kg2 {[%clk 0:00:07]}  Rg1+ {[%clk 0:00:12]} 49. Kh2 {[%clk 0:00:07]}  Rh1+ {[%clk 0:00:11]} 50. Kg3 {[%clk 0:00:08]}  Qg1+ {[%clk 0:00:11]} 51. Kf4 {[%clk 0:00:09]}  Rxh4+ {[%clk 0:00:10]} 52. Ke5 {[%clk 0:00:09]}  Qg5+ {[%clk 0:00:10]} 53. Kd6 {[%clk 0:00:10]}  Qd5+ {[%clk 0:00:09]} 54. Ke7 {[%clk 0:00:10]}  Rh7+ {[%clk 0:00:09]} 55. Ke8 {[%clk 0:00:07]}  Qa8# {[%clk 0:00:08]} 0-1


[Site "https://www.chess.com"]

[Event "Titled Tuesday Blitz November 29 Late 2022"]
[White "Bok, Benjamin"]
[Black "Abdrlauf, Elham"]
[WhiteFideId "1017063"]
[BlackFideId "1533533"]
[WhiteElo "2658"]
[BlackElo "2447"]
[Result "1-0"]
[Round "07"]
[TimeControl "180+1"]
[Date "2022.11.30"]
[WhiteClock "0:00:03"]
[BlackClock "0:00:04"]

1. c4 {[%clk 0:03:00]}  e6 {[%clk 0:02:59]} 2. g3 {[%clk 0:03:01]}  d5 {[%clk 0:02:59]} 3. Bg2 {[%clk 0:03:01]}  Nf6 {[%clk 0:03:00]} 4. Nf3 {[%clk 0:03:02]}  d4 {[%clk 0:03:00]} 5. O-O {[%clk 0:03:01]}  c5 {[%clk 0:03:00]} 6. e3 {[%clk 0:03:01]}  Nc6 {[%clk 0:03:01]} 7. exd4 {[%clk 0:03:02]}  cxd4 {[%clk 0:03:02]} 8. d3 {[%clk 0:03:02]}  Bd6 {[%clk 0:03:03]} 9. Na3 {[%clk 0:03:02]}  O-O {[%clk 0:03:01]} 10. Nc2 {[%clk 0:03:01]}  e5 {[%clk 0:03:02]} 11. b4 {[%clk 0:03:01]}  Re8 {[%clk 0:02:53]} 12. Rb1 {[%clk 0:02:59]}  h6 {[%clk 0:02:47]} 13. Re1 {[%clk 0:02:57]}  Bf5 {[%clk 0:02:47]} 14. b5 {[%clk 0:02:35]}  Na5 {[%clk 0:02:46]} 15. h3 {[%clk 0:02:18]}  Rc8 {[%clk 0:02:45]} 16. g4 {[%clk 0:02:16]}  Bh7 {[%clk 0:02:43]} 17. g5 {[%clk 0:02:17]}  hxg5 {[%clk 0:02:05]} 18. Bxg5 {[%clk 0:02:16]}  e4 {[%clk 0:02:05]} 19. dxe4 {[%clk 0:02:09]}  d3 {[%clk 0:01:55]} 20. Ne3 {[%clk 0:01:48]}  Be7 {[%clk 0:01:10]} 21. Nd2 {[%clk 0:00:53]}  Nxe4 {[%clk 0:01:05]} 22. Bxe7 {[%clk 0:00:52]}  Qxe7 {[%clk 0:00:53]} 23. Bxe4 {[%clk 0:00:30]}  Bxe4 {[%clk 0:00:54]} 24. Qg4 {[%clk 0:00:30]}  Bg6 {[%clk 0:00:45]} 25. h4 {[%clk 0:00:29]}  Rc5 {[%clk 0:00:37]} 26. Ng2 {[%clk 0:00:11]}  Qd8 {[%clk 0:00:19]} 27. Rxe8+ {[%clk 0:00:11]}  Qxe8 {[%clk 0:00:19]} 28. Re1 {[%clk 0:00:11]}  Qc8 {[%clk 0:00:15]} 29. Qxc8+ {[%clk 0:00:09]}  Rxc8 {[%clk 0:00:16]} 30. Ne3 {[%clk 0:00:07]}  b6 {[%clk 0:00:14]} 31. f3 {[%clk 0:00:06]}  f6 {[%clk 0:00:04]} 32. Kf2 {[%clk 0:00:05]}  Bf7 {[%clk 0:00:04]} 33. Nf5 {[%clk 0:00:05]}  Rd8 {[%clk 0:00:04]} 34. Re4 {[%clk 0:00:04]}  Nb7 {[%clk 0:00:04]} 35. Re7 {[%clk 0:00:03]}  Nc5 {[%clk 0:00:04]} 36. Rxa7 {[%clk 0:00:03]}  g6 {[%clk 0:00:03]} 37. Nh6+ {[%clk 0:00:03]}  Kg7 {[%clk 0:00:04]} 38. Nxf7 {[%clk 0:00:03]}  Re8 {[%clk 0:00:04]} 39. Nd6+ {[%clk 0:00:03]} 1-0


[Site "https://www.chess.com"]

[Event "Titled Tuesday Blitz November 29 Late 2022"]
[White "Buchenau, Frank"]
[Black "Young, Ryan"]
[WhiteFideId "4604350"]
[BlackFideId "2049945"]
[WhiteElo "2157"]
[BlackElo "2286"]
[Result "1-0"]
[Round "07"]
[TimeControl "180+1"]
[Date "2022.11.30"]
[WhiteClock "0:00:13"]
[BlackClock "0:00:20"]

1. e4 {[%clk 0:03:00]}  c5 {[%clk 0:02:59]} 2. Nf3 {[%clk 0:03:00]}  e6 {[%clk 0:03:00]} 3. d4 {[%clk 0:02:58]}  cxd4 {[%clk 0:03:01]} 4. Nxd4 {[%clk 0:02:58]}  a6 {[%clk 0:03:01]} 5. Bd3 {[%clk 0:02:57]}  Bc5 {[%clk 0:03:00]} 6. Nb3 {[%clk 0:02:57]}  Ba7 {[%clk 0:03:01]} 7. O-O {[%clk 0:02:57]}  Ne7 {[%clk 0:03:00]} 8. c4 {[%clk 0:02:55]}  d6 {[%clk 0:02:55]} 9. Qe2 {[%clk 0:02:55]}  Nbc6 {[%clk 0:02:51]} 10. Be3 {[%clk 0:02:55]}  O-O {[%clk 0:02:51]} 11. Bxa7 {[%clk 0:02:54]}  Rxa7 {[%clk 0:02:52]} 12. Nc3 {[%clk 0:02:53]}  d5 {[%clk 0:02:27]} 13. exd5 {[%clk 0:02:36]}  exd5 {[%clk 0:02:27]} 14. cxd5 {[%clk 0:02:31]}  Nxd5 {[%clk 0:02:27]} 15. Bxh7+ {[%clk 0:02:29]}  Kxh7 {[%clk 0:02:23]} 16. Qh5+ {[%clk 0:02:24]}  Kg8 {[%clk 0:02:22]} 17. Nxd5 {[%clk 0:02:20]}  Be6 {[%clk 0:02:19]} 18. Rad1 {[%clk 0:02:19]}  Bxd5 {[%clk 0:02:13]} 19. Rxd5 {[%clk 0:02:16]}  Qf6 {[%clk 0:02:11]} 20. Rd3 {[%clk 0:01:50]}  g6 {[%clk 0:01:58]} 21. Qe2 {[%clk 0:01:45]}  Raa8 {[%clk 0:01:45]} 22. Rfd1 {[%clk 0:01:42]}  Rfe8 {[%clk 0:01:44]} 23. Qd2 {[%clk 0:01:39]}  Rad8 {[%clk 0:01:37]} 24. Nc5 {[%clk 0:01:09]}  Rxd3 {[%clk 0:01:24]} 25. Nxd3 {[%clk 0:01:09]}  Rd8 {[%clk 0:01:19]} 26. h3 {[%clk 0:01:00]}  Qd4 {[%clk 0:01:17]} 27. Qc3 {[%clk 0:00:55]}  Ne5 {[%clk 0:01:00]} 28. Nxe5 {[%clk 0:00:23]}  Qxd1+ {[%clk 0:00:58]} 29. Kh2 {[%clk 0:00:24]}  Qd6 {[%clk 0:00:42]} 30. f4 {[%clk 0:00:23]}  Qe6 {[%clk 0:00:31]} 31. Qc7 {[%clk 0:00:20]}  Qd5 {[%clk 0:00:19]} 32. b3 {[%clk 0:00:16]}  Kg7 {[%clk 0:00:18]} 33. a4 {[%clk 0:00:12]}  Rd6 {[%clk 0:00:17]} 34. a5 {[%clk 0:00:10]}  Rf6 {[%clk 0:00:17]} 35. Ng4 {[%clk 0:00:05]}  Rc6 {[%clk 0:00:12]} 36. Qe7 {[%clk 0:00:05]}  Qe6 {[%clk 0:00:10]} 37. Qg5 {[%clk 0:00:03]}  Qd6 {[%clk 0:00:03]} 38. Ne5 {[%clk 0:00:03]}  Rc7 {[%clk 0:00:03]} 39. h4 {[%clk 0:00:03]}  Re7 {[%clk 0:00:03]} 40. h5 {[%clk 0:00:03]}  Re6 {[%clk 0:00:03]} 41. hxg6 {[%clk 0:00:03]}  Rxg6 {[%clk 0:00:04]} 42. Nxg6 {[%clk 0:00:03]}  Qxg6 {[%clk 0:00:05]} 43. Qxg6+ {[%clk 0:00:03]}  Kxg6 {[%clk 0:00:06]} 44. g4 {[%clk 0:00:03]}  Kf6 {[%clk 0:00:06]} 45. Kg3 {[%clk 0:00:04]}  Ke6 {[%clk 0:00:07]} 46. Kf3 {[%clk 0:00:04]}  Kd5 {[%clk 0:00:08]} 47. g5 {[%clk 0:00:04]}  Kc5 {[%clk 0:00:09]} 48. f5 {[%clk 0:00:04]}  Kd5 {[%clk 0:00:10]} 49. g6 {[%clk 0:00:04]}  fxg6 {[%clk 0:00:10]} 50. fxg6 {[%clk 0:00:05]}  Ke6 {[%clk 0:00:11]} 51. Ke4 {[%clk 0:00:06]}  Kf6 {[%clk 0:00:11]} 52. Kd5 {[%clk 0:00:06]}  Kxg6 {[%clk 0:00:12]} 53. Kc5 {[%clk 0:00:07]}  Kf7 {[%clk 0:00:13]} 54. Kb6 {[%clk 0:00:08]}  Ke7 {[%clk 0:00:13]} 55. Kxb7 {[%clk 0:00:09]}  Kd6 {[%clk 0:00:14]} 56. b4 {[%clk 0:00:09]}  Kd7 {[%clk 0:00:14]} 57. Kxa6 {[%clk 0:00:09]}  Kc6 {[%clk 0:00:14]} 58. b5+ {[%clk 0:00:10]}  Kc7 {[%clk 0:00:15]} 59. b6+ {[%clk 0:00:10]}  Kb8 {[%clk 0:00:16]} 60. Kb5 {[%clk 0:00:11]}  Ka8 {[%clk 0:00:17]} 61. a6 {[%clk 0:00:11]}  Kb8 {[%clk 0:00:17]} 62. Kc6 {[%clk 0:00:12]}  Ka8 {[%clk 0:00:18]} 63. Kd7 {[%clk 0:00:12]}  Kb8 {[%clk 0:00:18]} 64. b7 {[%clk 0:00:12]}  Ka7 {[%clk 0:00:19]} 65. Kc7 {[%clk 0:00:12]}  Kxa6 {[%clk 0:00:19]} 66. b8=Q {[%clk 0:00:13]}  Ka5 {[%clk 0:00:19]} 67. Qb3 {[%clk 0:00:13]}  Ka6 {[%clk 0:00:20]} 68. Qb4 {[%clk 0:00:13]}  Ka7 {[%clk 0:00:20]} 69. Qa3# {[%clk 0:00:13]} 1-0


[Site "https://www.chess.com"]

[Event "Titled Tuesday Blitz November 29 Late 2022"]
[White "Burke, Paul"]
[Black "Winkels, Marcel"]
[WhiteFideId "2605767"]
[BlackFideId "1003887"]
[WhiteElo "1918"]
[BlackElo "1900"]
[Result "1/2-1/2"]
[Round "07"]
[TimeControl "180+1"]
[Date "2022.11.30"]
[WhiteClock "0:00:10"]
[BlackClock "0:00:05"]

1. e4 {[%clk 0:03:00]}  c5 {[%clk 0:02:59]} 2. Nf3 {[%clk 0:02:57]}  d6 {[%clk 0:02:59]} 3. d4 {[%clk 0:02:57]}  cxd4 {[%clk 0:02:59]} 4. c3 {[%clk 0:02:57]}  dxc3 {[%clk 0:02:55]} 5. Nxc3 {[%clk 0:02:56]}  Nf6 {[%clk 0:02:56]} 6. Bc4 {[%clk 0:02:55]}  e6 {[%clk 0:02:53]} 7. O-O {[%clk 0:02:55]}  Be7 {[%clk 0:02:50]} 8. Qe2 {[%clk 0:02:52]}  O-O {[%clk 0:02:47]} 9. Rd1 {[%clk 0:02:52]}  Nc6 {[%clk 0:02:45]} 10. e5 {[%clk 0:02:50]}  Ne8 {[%clk 0:02:36]} 11. exd6 {[%clk 0:02:45]}  Nxd6 {[%clk 0:02:35]} 12. Bd3 {[%clk 0:02:30]}  a6 {[%clk 0:02:32]} 13. a3 {[%clk 0:02:29]}  b5 {[%clk 0:02:22]} 14. Bf4 {[%clk 0:02:28]}  Bb7 {[%clk 0:02:20]} 15. Bc2 {[%clk 0:02:28]}  Qc7 {[%clk 0:01:47]} 16. Bxd6 {[%clk 0:02:23]}  Bxd6 {[%clk 0:01:46]} 17. Qd3 {[%clk 0:02:23]}  Bxh2+ {[%clk 0:01:34]} 18. Nxh2 {[%clk 0:02:19]}  g6 {[%clk 0:01:34]} 19. Ne4 {[%clk 0:01:59]}  Qe5 {[%clk 0:01:25]} 20. Qd7 {[%clk 0:01:36]}  Na5 {[%clk 0:01:20]} 21. Nf3 {[%clk 0:01:26]}  Qxb2 {[%clk 0:01:12]} 22. Qd4 {[%clk 0:00:38]}  Qxd4 {[%clk 0:01:04]} 23. Nxd4 {[%clk 0:00:37]}  Rac8 {[%clk 0:01:03]} 24. Rac1 {[%clk 0:00:32]}  Rxc2 {[%clk 0:01:00]} 25. Nxc2 {[%clk 0:00:27]}  Bxe4 {[%clk 0:00:59]} 26. Ne3 {[%clk 0:00:27]}  Nc4 {[%clk 0:00:52]} 27. Nxc4 {[%clk 0:00:26]}  bxc4 {[%clk 0:00:51]} 28. Rxc4 {[%clk 0:00:26]}  Bd5 {[%clk 0:00:46]} 29. Rc7 {[%clk 0:00:26]}  Rb8 {[%clk 0:00:44]} 30. Rdc1 {[%clk 0:00:23]}  h5 {[%clk 0:00:40]} 31. Rc8+ {[%clk 0:00:23]}  Rxc8 {[%clk 0:00:39]} 32. Rxc8+ {[%clk 0:00:23]}  Kg7 {[%clk 0:00:39]} 33. Rc7 {[%clk 0:00:23]}  Kf6 {[%clk 0:00:37]} 34. Ra7 {[%clk 0:00:22]}  Bc4 {[%clk 0:00:37]} 35. a4 {[%clk 0:00:21]}  g5 {[%clk 0:00:34]} 36. a5 {[%clk 0:00:21]}  Kg6 {[%clk 0:00:33]} 37. f3 {[%clk 0:00:21]}  g4 {[%clk 0:00:30]} 38. fxg4 {[%clk 0:00:19]}  hxg4 {[%clk 0:00:30]} 39. Kf2 {[%clk 0:00:19]}  f5 {[%clk 0:00:29]} 40. Kg3 {[%clk 0:00:18]}  Kf6 {[%clk 0:00:27]} 41. Rc7 {[%clk 0:00:18]}  Bb5 {[%clk 0:00:26]} 42. Rc5 {[%clk 0:00:17]}  Bd3 {[%clk 0:00:25]} 43. Kf2 {[%clk 0:00:17]}  f4 {[%clk 0:00:24]} 44. g3 {[%clk 0:00:16]}  f3 {[%clk 0:00:23]} 45. Ke3 {[%clk 0:00:16]}  Bf1 {[%clk 0:00:22]} 46. Kf2 {[%clk 0:00:16]}  Be2 {[%clk 0:00:21]} 47. Ke3 {[%clk 0:00:16]}  e5 {[%clk 0:00:18]} 48. Kf2 {[%clk 0:00:15]}  Kf5 {[%clk 0:00:17]} 49. Ke3 {[%clk 0:00:15]}  Bf1 {[%clk 0:00:15]} 50. Kf2 {[%clk 0:00:14]}  Be2 {[%clk 0:00:16]} 51. Ke3 {[%clk 0:00:14]}  Ke6 {[%clk 0:00:11]} 52. Rc6+ {[%clk 0:00:12]}  Kd5 {[%clk 0:00:11]} 53. Rg6 {[%clk 0:00:10]}  Kc4 {[%clk 0:00:10]} 54. Rxg4+ {[%clk 0:00:09]}  Kc3 {[%clk 0:00:10]} 55. Rg5 {[%clk 0:00:09]}  Kb4 {[%clk 0:00:06]} 56. Rxe5 {[%clk 0:00:08]}  Kc4 {[%clk 0:00:06]} 57. Kf2 {[%clk 0:00:08]}  Kd4 {[%clk 0:00:06]} 58. Rxe2 {[%clk 0:00:06]}  fxe2 {[%clk 0:00:05]} 59. Kxe2 {[%clk 0:00:06]}  Ke4 {[%clk 0:00:06]} 60. Kd2 {[%clk 0:00:06]}  Kf3 {[%clk 0:00:05]} 61. Kc3 {[%clk 0:00:07]}  Kxg3 {[%clk 0:00:06]} 62. Kc4 {[%clk 0:00:07]}  Kf4 {[%clk 0:00:07]} 63. Kc5 {[%clk 0:00:08]}  Ke5 {[%clk 0:00:07]} 64. Kb6 {[%clk 0:00:08]}  Kd6 {[%clk 0:00:07]} 65. Kxa6 {[%clk 0:00:08]}  Kc6 {[%clk 0:00:08]} 66. Ka7 {[%clk 0:00:08]}  Kc7 {[%clk 0:00:08]} 67. a6 {[%clk 0:00:09]}  Kc8 {[%clk 0:00:05]} 68. Kb6 {[%clk 0:00:09]}  Kb8 {[%clk 0:00:05]} 69. a7+ {[%clk 0:00:09]}  Ka8 {[%clk 0:00:05]} 70. Kc7 {[%clk 0:00:10]}  Kxa7 {[%clk 0:00:05]} 1/2-1/2


[Site "https://www.chess.com"]

[Event "Titled Tuesday Blitz November 29 Late 2022"]
[White "Cardoso Cardoso, Jose Gabriel"]
[Black "Ezat, Mohamed"]
[WhiteFideId "4430492"]
[BlackFideId "10600906"]
[WhiteElo "2484"]
[BlackElo "2386"]
[Result "1-0"]
[Round "07"]
[TimeControl "180+1"]
[Date "2022.11.30"]
[WhiteClock "0:00:19"]
[BlackClock "0:00:01"]

1. c4 {[%clk 0:03:00]}  Nf6 {[%clk 0:02:57]} 2. Nc3 {[%clk 0:03:00]}  g6 {[%clk 0:02:57]} 3. g3 {[%clk 0:02:57]}  Bg7 {[%clk 0:02:57]} 4. Bg2 {[%clk 0:02:58]}  O-O {[%clk 0:02:58]} 5. d3 {[%clk 0:02:57]}  c5 {[%clk 0:02:57]} 6. e3 {[%clk 0:02:55]}  d6 {[%clk 0:02:55]} 7. Nge2 {[%clk 0:02:55]}  Nc6 {[%clk 0:02:56]} 8. Qd2 {[%clk 0:02:55]}  a6 {[%clk 0:02:56]} 9. b3 {[%clk 0:02:55]}  Rb8 {[%clk 0:02:55]} 10. Bb2 {[%clk 0:02:55]}  Bd7 {[%clk 0:02:54]} 11. O-O {[%clk 0:02:55]}  b5 {[%clk 0:02:54]} 12. Rad1 {[%clk 0:02:55]}  Qc8 {[%clk 0:02:50]} 13. Rfe1 {[%clk 0:02:32]}  Bh3 {[%clk 0:02:47]} 14. Bh1 {[%clk 0:02:31]}  e5 {[%clk 0:02:36]} 15. f4 {[%clk 0:02:21]}  Ng4 {[%clk 0:02:31]} 16. Nd5 {[%clk 0:02:16]}  Kh8 {[%clk 0:02:21]} 17. Nec3 {[%clk 0:02:10]}  f5 {[%clk 0:02:08]} 18. Ba1 {[%clk 0:01:59]}  Qd8 {[%clk 0:01:53]} 19. Bg2 {[%clk 0:01:52]}  Bxg2 {[%clk 0:01:50]} 20. Qxg2 {[%clk 0:01:51]}  Qc8 {[%clk 0:01:41]} 21. h3 {[%clk 0:01:48]}  Nh6 {[%clk 0:01:38]} 22. Kh2 {[%clk 0:01:44]}  bxc4 {[%clk 0:01:22]} 23. dxc4 {[%clk 0:01:43]}  e4 {[%clk 0:01:22]} 24. Rd2 {[%clk 0:01:31]}  Nf7 {[%clk 0:01:18]} 25. Red1 {[%clk 0:01:30]}  Rb7 {[%clk 0:01:12]} 26. g4 {[%clk 0:01:28]}  Nh6 {[%clk 0:01:08]} 27. g5 {[%clk 0:01:26]}  Nf7 {[%clk 0:01:06]} 28. h4 {[%clk 0:01:26]}  h5 {[%clk 0:00:36]} 29. Qf1 {[%clk 0:01:06]}  Kh7 {[%clk 0:00:32]} 30. Na4 {[%clk 0:01:03]}  Bxa1 {[%clk 0:00:26]} 31. Rxa1 {[%clk 0:01:03]}  Ne7 {[%clk 0:00:24]} 32. Nf6+ {[%clk 0:00:59]}  Kg7 {[%clk 0:00:24]} 33. Qc1 {[%clk 0:00:57]}  Ng8 {[%clk 0:00:20]} 34. Nd5 {[%clk 0:00:56]}  Kh7 {[%clk 0:00:18]} 35. Qc3 {[%clk 0:00:55]}  Qe6 {[%clk 0:00:17]} 36. Rad1 {[%clk 0:00:54]}  Rd8 {[%clk 0:00:16]} 37. Nab6 {[%clk 0:00:47]}  Rdb8 {[%clk 0:00:16]} 38. Qa5 {[%clk 0:00:43]}  Ne7 {[%clk 0:00:11]} 39. Nf6+ {[%clk 0:00:29]}  Kg7 {[%clk 0:00:10]} 40. Nbd5 {[%clk 0:00:30]}  Nxd5 {[%clk 0:00:08]} 41. Rxd5 {[%clk 0:00:29]}  Rb6 {[%clk 0:00:07]} 42. Qc3 {[%clk 0:00:28]}  Kf8 {[%clk 0:00:07]} 43. Nh7+ {[%clk 0:00:28]}  Kg8 {[%clk 0:00:07]} 44. Nf6+ {[%clk 0:00:26]}  Kf8 {[%clk 0:00:07]} 45. R5d2 {[%clk 0:00:23]}  Ke7 {[%clk 0:00:07]} 46. Nd5+ {[%clk 0:00:23]}  Kf8 {[%clk 0:00:07]} 47. Nxb6 {[%clk 0:00:23]}  Rxb6 {[%clk 0:00:08]} 48. Qa5 {[%clk 0:00:23]}  Rc6 {[%clk 0:00:07]} 49. Rd5 {[%clk 0:00:22]}  Qc8 {[%clk 0:00:07]} 50. Qc3 {[%clk 0:00:21]}  Kg8 {[%clk 0:00:06]} 51. Qf6 {[%clk 0:00:21]}  Nh8 {[%clk 0:00:04]} 52. Rxd6 {[%clk 0:00:21]}  Rxd6 {[%clk 0:00:04]} 53. Rxd6 {[%clk 0:00:21]}  Kh7 {[%clk 0:00:01]} 54. Rd8 {[%clk 0:00:19]} 1-0


[Site "https://www.chess.com"]

[Event "Titled Tuesday Blitz November 29 Late 2022"]
[White "Chlpik, Martin"]
[Black "Reprintsev, Alexander"]
[WhiteFideId "14923351"]
[BlackFideId "14100541"]
[WhiteElo "2109"]
[BlackElo "2230"]
[Result "1-0"]
[Round "07"]
[TimeControl "180+1"]
[Date "2022.11.30"]
[WhiteClock "0:00:16"]
[BlackClock "0:00:18"]

1. d4 {[%clk 0:02:42]}  d5 {[%clk 0:02:57]} 2. c4 {[%clk 0:02:42]}  e5 {[%clk 0:02:56]} 3. e4 {[%clk 0:02:35]}  dxe4 {[%clk 0:02:53]} 4. d5 {[%clk 0:02:30]}  c6 {[%clk 0:02:53]} 5. Nc3 {[%clk 0:02:29]}  Bb4 {[%clk 0:02:50]} 6. Ne2 {[%clk 0:02:25]}  Nf6 {[%clk 0:02:49]} 7. Bg5 {[%clk 0:02:24]}  Bg4 {[%clk 0:02:34]} 8. Qb3 {[%clk 0:02:20]}  Qa5 {[%clk 0:02:24]} 9. Bxf6 {[%clk 0:02:12]}  gxf6 {[%clk 0:02:23]} 10. a3 {[%clk 0:02:12]}  Bxc3+ {[%clk 0:02:23]} 11. Nxc3 {[%clk 0:02:13]}  b6 {[%clk 0:02:14]} 12. Be2 {[%clk 0:02:07]}  Bxe2 {[%clk 0:02:13]} 13. Kxe2 {[%clk 0:02:07]}  O-O {[%clk 0:02:09]} 14. Nxe4 {[%clk 0:02:06]}  Kh8 {[%clk 0:01:55]} 15. Qf3 {[%clk 0:01:56]}  Nd7 {[%clk 0:01:16]} 16. dxc6 {[%clk 0:01:55]}  Nc5 {[%clk 0:01:14]} 17. Qxf6+ {[%clk 0:01:54]}  Kg8 {[%clk 0:01:14]} 18. Qg5+ {[%clk 0:01:20]}  Kh8 {[%clk 0:01:13]} 19. Qxe5+ {[%clk 0:01:06]}  f6 {[%clk 0:01:13]} 20. Nxf6 {[%clk 0:01:04]}  Nb3 {[%clk 0:01:14]} 21. Nd5+ {[%clk 0:00:59]}  Kg8 {[%clk 0:01:10]} 22. Qg5+ {[%clk 0:00:46]}  Kh8 {[%clk 0:01:02]} 23. Qe5+ {[%clk 0:00:44]}  Kg8 {[%clk 0:01:02]} 24. Ne7+ {[%clk 0:00:41]}  Kf7 {[%clk 0:01:01]} 25. Qxa5 {[%clk 0:00:33]}  bxa5 {[%clk 0:01:00]} 26. Nd5 {[%clk 0:00:29]}  Nxa1 {[%clk 0:00:43]} 27. Rxa1 {[%clk 0:00:30]}  Rab8 {[%clk 0:00:43]} 28. b4 {[%clk 0:00:28]}  Kg6 {[%clk 0:00:30]} 29. f4 {[%clk 0:00:26]}  Kf5 {[%clk 0:00:26]} 30. Kf3 {[%clk 0:00:26]}  h5 {[%clk 0:00:25]} 31. g3 {[%clk 0:00:26]}  Rf7 {[%clk 0:00:18]} 32. Re1 {[%clk 0:00:24]}  Kg6 {[%clk 0:00:17]} 33. Re5 {[%clk 0:00:23]}  Rc8 {[%clk 0:00:15]} 34. c7 {[%clk 0:00:19]}  axb4 {[%clk 0:00:16]} 35. axb4 {[%clk 0:00:18]}  a6 {[%clk 0:00:17]} 36. b5 {[%clk 0:00:17]}  axb5 {[%clk 0:00:16]} 37. cxb5 {[%clk 0:00:18]}  Rfxc7 {[%clk 0:00:16]} 38. Nxc7 {[%clk 0:00:18]}  Rxc7 {[%clk 0:00:17]} 39. b6 {[%clk 0:00:17]}  Rc3+ {[%clk 0:00:17]} 40. Re3 {[%clk 0:00:17]}  Rb3 {[%clk 0:00:18]} 41. Rxb3 {[%clk 0:00:16]} 1-0


[Site "https://www.chess.com"]